bitfinex-derivatives/quotes_ETHF0:USTF0_20240910
["timestamp","ask_amount","ask_price","bid_price","bid_amount"]
[1725988110104,2.33939,2343.0,2342.7,26.40263]
[1725988110291,0.79939,2343.0,2342.8,0.42681]
[1725988111705,2.98664,2343.3,2342.8,1.54]
[1725988112004,0.42678,2343.0,2342.9,0.4039]
[1725988112399,0.375,2343.2,2342.9,0.83069]
[1725988112599,0.375,2343.2,2342.9,0.4039]
[1725988112805,0.42676,2343.1,2343.0,0.3643]
[1725988115399,0.80653,2343.3,2343.1,0.42676]
[1725988115594,0.42673,2343.3,2343.1,0.80166]
[1725988115810,0.42674,2343.2,2343.1,0.3749]
[1725988117505,0.42674,2343.2,2343.0,0.79107]
[1725988117703,0.42676,2343.1,2343.0,0.3643]
[1725988119411,1.20246,2343.1,2343.0,0.3643]
[1725988123108,0.42676,2343.1,2343.0,0.3643]
[1725988124506,0.42675,2343.2,2343.0,0.79107]
[1725988125205,0.42675,2343.2,2343.1,0.3994]
[1725988125605,0.4267,2343.5,2343.3,0.42671]
[1725988125916,0.42668,2343.6,2343.4,1.9667]
[1725988126113,0.42668,2343.6,2343.5,0.3639]
[1725988126614,0.763,2343.8,2343.5,0.3639]
[1725988126816,1.96662,2343.9,2343.6,1.22256]
[1725988127009,0.42662,2343.9,2343.6,1.22256]
[1725988128209,3.22404522,2344.0,2343.6,1.22255]
[1725988128515,0.42662,2343.9,2343.6,0.7959]
[1725988129012,0.42664,2343.8,2343.6,0.7959]
[1725988129314,1.19694,2343.8,2343.6,0.7959]
[1725988129713,0.7703,2343.8,2343.6,0.7959]
[1725988130117,1.19693,2343.8,2343.6,0.7959]
[1725988130413,0.7703,2343.8,2343.6,0.7959]
[1725988131815,0.7703,2343.8,2343.6,1.22256]
[1725988132011,0.82391,2344.0,2343.7,0.42665]
[1725988132309,0.82391,2344.0,2343.6,1.22256]
[1725988132511,0.42662,2343.9,2343.6,1.22256]
[1725988133801,0.3973,2344.0,2343.6,0.7959]
[1725988134006,0.42667,2343.6,2343.5,0.3639]
[1725988134202,0.42666,2343.7,2343.5,0.3639]
[1725988134813,1.06654,2343.9,2343.5,0.3639]
[1725988135015,0.42666,2343.7,2343.5,0.3639]
[1725988135607,1.06654,2343.9,2343.5,0.3639]
[1725988136006,0.42667,2343.7,2343.5,0.3639]
[1725988136412,0.42667,2343.7,2343.5,0.79058]
[1725988136812,0.42667,2343.7,2343.5,0.3639]
[1725988137306,0.42667,2343.6,2343.5,0.3639]
[1725988137503,0.42667,2343.6,2343.2,4.62173]
[1725988137504,3.33,2343.6,2343.2,4.62173]
[1725988137703,1.18959,2343.5,2343.3,0.42672]
[1725988137914,1.18959,2343.5,2343.2,5.02223]
[1725988138612,1.18959,2343.5,2343.3,0.42672]
[1725988141413,1.18959,2343.5,2343.3,0.42671]
[1725988141618,0.7629,2343.5,2343.3,0.42671]
[1725988141818,0.403,2343.8,2343.4,3.33]
[1725988142015,0.42666,2343.7,2343.5,0.3667]
[1725988142213,0.7649,2343.9,2343.7,0.42665]
[1725988142415,0.7649,2343.9,2343.6,0.3773]
[1725988142723,0.42663,2343.8,2343.6,0.3773]
[1725988143509,0.42663,2343.8,2343.3,0.099]
[1725988143510,3.33,2343.8,2343.3,0.099]
[1725988143713,3.33,2343.8,2343.3,0.42672]
[1725988143714,0.42668,2343.6,2343.3,0.42672]
[1725988143919,0.3959,2343.5,2343.3,0.42672]
[1725988145210,0.3959,2343.5,2343.4,0.66698369]
[1725988145416,0.3959,2343.5,2343.2,1.91329098]
[1725988145610,0.3959,2343.5,2343.3,0.66700352]
[1725988145611,1.22059,2343.5,2343.3,0.66700352]
[1725988145917,0.7939,2343.5,2343.2,0.80403]
[1725988146125,0.7939,2343.5,2343.3,0.66703974]
[1725988146323,0.7939,2343.5,2343.2,0.80403]
[1725988146620,0.7939,2343.5,2343.3,0.42672]
[1725988147013,0.7939,2343.5,2343.3,0.42671]
[1725988147525,0.7939,2343.5,2343.4,0.6670075]
[1725988147716,0.7939,2343.5,2343.4,0.66700298]
[1725988148025,0.7939,2343.5,2343.3,0.42671]
[1725988148235,0.7939,2343.5,2343.4,0.4267]
[1725988148420,0.7939,2343.5,2343.4,0.66696837]
[1725988148722,0.7939,2343.5,2343.3,0.42671]
[1725988149028,1.22059,2343.5,2343.2,4.81656098]
[1725988149220,1.22059,2343.5,2343.3,0.66703856]
[1725988149524,0.7939,2343.5,2343.3,0.42671]
[1725988149723,1.22059,2343.5,2343.2,4.81656098]
[1725988149922,0.7939,2343.5,2343.3,0.42672]
[1725988150321,0.7939,2343.5,2343.2,3.7073]
[1725988150322,1.22059,2343.5,2343.2,5.24329098]
[1725988150628,0.7939,2343.5,2343.3,1.09371007]
[1725988150817,0.7939,2343.5,2343.3,0.42671]
[1725988152116,1.22059,2343.5,2343.3,0.42671]
[1725988152313,0.7939,2343.5,2343.3,0.42671]
[1725988152725,0.7939,2343.5,2343.2,0.3773]
[1725988152726,1.22059,2343.5,2343.2,0.3773]
[1725988153027,0.7939,2343.5,2343.3,0.66704525]
[1725988153225,0.79846,2343.7,2343.4,0.66697535]
[1725988153226,0.3718,2343.7,2343.4,0.66697535]
[1725988153422,0.79845,2343.7,2343.5,0.80158]
[1725988154322,0.79845,2343.7,2343.6,0.4029]
[1725988154529,0.42665,2343.7,2343.6,0.7697]
[1725988154926,0.7535,2343.9,2343.6,0.7697]
[1725988154927,0.7535,2343.9,2343.6,1.19636]
[1725988155128,0.7535,2343.9,2343.7,0.42665]
[1725988155129,1.18013,2343.9,2343.7,0.42665]
[1725988155429,1.18013,2343.9,2343.6,1.19636]
[1725988155926,0.7535,2343.9,2343.7,0.42665]
[1725988156122,0.4266,2344.0,2343.8,0.42663]
[1725988156327,1.21837,2344.2,2344.0,0.42659]
[1725988156516,0.80963,2344.4,2344.2,0.42654]
[1725988156716,0.7918,2344.5,2344.2,3.33]
[1725988156921,0.7918,2344.5,2344.2,0.42655]
[1725988157122,1.21831,2344.5,2344.3,0.42654]
[1725988157323,6.12743522,2345.0,2344.6,0.42648]
[1725988157527,2.79743522,2345.3,2344.9,0.42642]
[1725988157715,6.67773142,2345.5,2344.7,3.33]
[1725988157716,0.7696,2345.4,2344.7,3.33]
[1725988158028,0.42644,2344.9,2344.6,0.4926]
[1725988158233,0.42644,2344.9,2344.6,0.7731]
[1725988158423,0.3767,2345.1,2344.6,0.7731]
[1725988158623,0.42644,2344.9,2344.6,0.7731]
[1725988158928,0.80132,2345.0,2344.6,1.19959]
[1725988159318,0.81344,2344.9,2344.6,0.7731]
[1725988159522,0.387,2344.9,2344.6,1.19958]
[1725988160231,0.387,2344.9,2344.7,0.42646]
[1725988160427,0.387,2344.9,2344.6,1.1401]
[1725988160428,0.3749,2345.0,2344.8,0.42645]
[1725988160632,0.42638,2345.2,2344.8,0.42644]
[1725988160835,0.42638,2345.2,2344.9,0.42643]
[1725988161126,0.42637,2345.3,2344.9,0.42643]
[1725988161923,10.84278978,2345.4,2345.0,0.4264]
[1725988162131,0.42636,2345.3,2344.9,0.42642]
[1725988163732,10.84278978,2345.4,2344.7,3.33]
[1725988163928,3.717,2345.5,2344.7,4.39615]
[1725988164234,4.14332,2345.5,2345.1,0.42639]
[1725988164824,0.42634,2345.4,2345.1,0.42639]
[1725988165021,0.42634,2345.4,2344.8,0.099]
[1725988165022,3.717,2345.5,2345.2,0.42637]
[1725988165226,4.14333,2345.5,2345.1,0.42638]
[1725988165423,0.42635,2345.4,2345.0,0.42641]
[1725988165639,0.42635,2345.4,2345.1,0.83019]
[1725988165933,4.14333,2345.5,2345.1,0.83019]
[1725988166632,0.42635,2345.4,2345.1,0.4038]
[1725988166936,4.14334,2345.5,2345.1,0.83019]
[1725988167134,0.42634,2345.4,2345.1,0.83019]
[1725988167927,4.14333,2345.5,2345.1,0.83019]
[1725988168325,3.717,2345.5,2345.2,0.42637]
[1725988168528,4.14332,2345.5,2345.1,0.83018]
[1725988168727,0.81332,2345.5,2345.2,0.3837]
[1725988169437,0.81332,2345.5,2345.2,0.7847]
[1725988169732,0.42634,2345.4,2345.2,0.7847]
[1725988169930,4.14333,2345.5,2345.2,0.3837]
[1725988170128,0.42634,2345.4,2345.2,0.3837]
[1725988170431,4.14333,2345.5,2345.2,0.3837]
[1725988170626,0.42633,2345.5,2345.2,0.3837]
[1725988170829,0.3686,2345.6,2345.2,5.07406]
[1725988171038,0.3686,2345.6,2345.1,0.4038]
[1725988171241,3.6986,2345.6,2345.0,0.42641]
[1725988171534,3.6986,2345.6,2344.9,0.80743]
[1725988171535,0.42637,2345.3,2344.9,0.80743]
[1725988171726,0.7649,2345.2,2344.9,0.381]
[1725988171927,0.7649,2345.2,2344.9,0.80742]
[1725988172931,0.7649,2345.2,2345.0,0.42641]
[1725988173728,0.4028,2345.4,2344.9,0.381]
[1725988174032,0.82914,2345.4,2345.0,0.42641]
[1725988174229,0.82914,2345.4,2345.1,0.42639]
[1725988174626,0.82914,2345.4,2345.0,0.4264]
[1725988174940,0.42636,2345.3,2345.0,0.4264]
[1725988175329,0.4028,2345.4,2345.1,0.42639]
[1725988175634,1.16854,2345.5,2345.2,0.3685]
[1725988175832,0.42634,2345.4,2345.2,0.7676]
[1725988176738,1.16853,2345.5,2345.2,0.7676]
[1725988176933,1.16853,2345.5,2345.2,1.19398]
[1725988177240,0.42634,2345.4,2345.2,0.7676]
[1725988178328,0.7422,2345.5,2345.3,0.42635]
[1725988178531,0.7422,2345.5,2345.2,1.19397]
[1725988178743,0.7422,2345.5,2344.9,0.381]
[1725988178943,0.42635,2345.4,2345.0,0.8002]
[1725988179241,0.42635,2345.4,2345.1,0.42639]
[1725988179836,0.7422,2345.5,2345.0,0.3738]
[1725988180339,0.7422,2345.5,2345.1,0.42638]
[1725988180638,0.42634,2345.4,2345.1,0.42638]
[1725988180841,3.33,2345.3,2344.8,0.099]
[1725988181032,3.33,2345.1,2344.7,4.195]
[1725988181227,0.3937,2345.0,2344.5,0.4661]
[1725988181426,0.3937,2345.0,2344.5,0.79359]
[1725988181642,0.4,2344.9,2344.5,0.79359]
[1725988181940,0.4,2344.9,2344.6,0.42648]
[1725988182531,0.3882,2345.3,2345.0,0.4264]
[1725988182732,0.7999,2345.4,2345.1,0.3876]
[1725988183128,0.42636,2345.3,2345.1,0.3876]
[1725988183529,1.22625,2345.4,2345.1,0.3876]
[1725988183728,0.7999,2345.4,2345.1,0.3876]
[1725988185439,0.3809,2345.8,2345.1,0.3876]
[1725988185647,0.7927,2345.7,2345.3,0.42636]
[1725988185842,11.66330994,2345.7,2345.4,0.4014]
[1725988186340,11.23701994,2345.7,2345.4,0.4014]
[1725988186750,10.44431994,2345.7,2345.5,0.3689]
[1725988186948,0.82284,2346.0,2345.6,0.3686]
[1725988187334,10.76454448,2345.9,2345.6,0.3686]
[1725988187537,11.19079448,2345.9,2345.6,0.3686]
[1725988187740,0.42627,2345.8,2345.6,0.3686]
[1725988188136,11.15904448,2345.9,2345.5,0.3689]
[1725988188137,11.58530448,2345.9,2345.5,0.3689]
[1725988188343,11.19079448,2345.9,2345.5,0.3689]
[1725988188534,10.76454448,2345.9,2345.5,0.79521]
[1725988189240,11.19079448,2345.9,2345.5,0.79521]
[1725988189653,0.3966,2346.0,2345.6,0.42629]
[1725988190745,0.82283,2346.0,2345.6,0.42629]
[1725988192137,0.82283,2346.0,2345.7,21.4]
[1725988192338,0.82283,2346.0,2345.8,0.3646]
[1725988192737,0.82284,2346.0,2345.8,0.3646]
[1725988195638,0.42625,2345.9,2345.8,0.3646]
[1725988196040,0.42625,2345.9,2345.7,21.4]
[1725988196449,0.3888,2346.2,2345.7,21.4]
[1725988196640,0.42625,2345.9,2345.7,21.4]
[1725988198455,10.97781768,2346.1,2345.9,0.42625]
[1725988198646,0.3659,2346.1,2346.0,0.7901]
[1725988198842,0.79211,2346.1,2346.0,1.1787]
[1725988199247,0.3969,2346.4,2346.0,1.1787]
[1725988199458,2.78031995,2346.3,2346.0,1.1787]
[1725988199762,2.78031995,2346.6,2346.3,1.06544]
[1725988199941,3.18321995,2347.0,2346.5,1.06536]
[1725988200141,3.18321995,2347.0,2346.7,3.33]
[1725988200350,0.4029,2347.0,2346.8,22.22818]
[1725988200548,3.18321995,2347.0,2346.8,21.8021]
[1725988200748,0.4029,2347.0,2346.8,21.8021]
[1725988200946,0.42607,2346.9,2346.8,21.8021]
[1725988201144,3.18321995,2347.0,2346.8,21.8021]
[1725988201145,3.18321995,2347.0,2346.8,21.4]
[1725988201347,0.4029,2347.0,2346.8,21.4]
[1725988201548,2.78031995,2347.0,2346.8,21.82608]
[1725988201751,2.78031995,2347.0,2346.9,4.68687]
[1725988201952,2.78031995,2347.2,2347.0,0.42605]
[1725988202142,2.78031995,2347.2,2347.0,0.4021]
[1725988202341,2.78031995,2347.3,2347.0,0.82814]
[1725988202757,2.78031995,2347.3,2346.9,3.33]
[1725988202948,2.78031995,2347.2,2346.8,21.4]
[1725988203144,2.78031995,2347.3,2346.9,3.33]
[1725988203353,2.78031995,2347.5,2347.4,0.42598]
[1725988203549,3.71618394,2347.7,2347.1,3.33]
[1725988203550,2.78031995,2347.6,2347.3,0.42599]
[1725988203743,0.3798,2347.7,2347.4,0.42597]
[1725988203744,3.16011995,2347.7,2347.4,0.42597]
[1725988203942,3.58605995,2347.7,2347.2,4.4636]
[1725988204146,3.16011995,2347.7,2347.2,4.88961]
[1725988204346,0.42595,2347.6,2347.2,4.88961]
[1725988204549,0.42595,2347.6,2347.2,1.55961]
[1725988204759,6.47911995,2347.9,2347.3,3.33]
[1725988204963,0.42597,2347.5,2347.2,0.3771]
[1725988205653,0.42598,2347.4,2347.2,0.3771]
[1725988206346,0.426,2347.3,2347.0,0.81464]
[1725988206547,0.42599,2347.4,2347.0,0.81464]
[1725988206946,0.426,2347.3,2347.0,0.81464]
[1725988207350,3.33,2347.7,2347.1,3.33]
[1725988207545,3.33,2347.7,2347.2,0.426]
[1725988207546,0.42596,2347.6,2347.2,0.426]
[1725988207743,0.42594,2347.7,2347.1,3.33]
[1725988207948,0.7666,2347.8,2347.4,0.42596]
[1725988208157,0.4259,2347.8,2347.2,3.7303]
[1725988208453,0.79469,2347.9,2347.5,0.42595]
[1725988208655,3.84487995,2348.3,2347.8,0.4259]
[1725988208958,0.387,2348.3,2348.0,0.42586]
[1725988209158,2.78031995,2348.9,2348.2,3.33]
[1725988209347,0.387,2349.1,2348.6,3.33]
[1725988209547,10.78246451,2349.1,2349.0,0.42569]
[1725988209751,0.42559,2349.6,2349.1,0.42566]
[1725988209948,0.387,2349.7,2349.0,3.33]
[1725988210344,0.387,2349.7,2349.4,0.42561]
[1725988210552,0.2,2350.0,2349.2,3.33]
[1725988210857,0.42557,2349.7,2349.1,0.52466]
[1725988211064,3.6956,2349.9,2349.0,3.33]
[1725988211246,0.42559,2349.6,2349.0,3.33]
[1725988211555,1.06386,2349.8,2349.0,3.33]
[1725988211751,1.06391,2349.7,2349.0,3.33]
[1725988212057,11.27736178,2349.6,2349.0,3.33]
[1725988212448,0.4256,2349.5,2349.0,3.75568]
[1725988212753,11.27735178,2349.6,2349.1,0.42566]
[1725988212960,10.85177178,2349.6,2349.0,3.33]
[1725988213161,11.27736178,2349.6,2349.1,0.42566]
[1725988213359,11.27736178,2349.6,2349.0,3.75567]
[1725988213655,3.6956,2349.9,2349.2,3.33]
[1725988213961,3.6956,2349.9,2349.4,3.33]
[1725988213962,0.3656,2349.9,2349.4,3.33]
[1725988214662,0.42555,2349.8,2349.4,3.33]
[1725988214857,0.79113,2349.9,2349.4,0.42561]
[1725988215061,0.2,2350.0,2349.9,0.42552]
[1725988215356,0.2,2350.0,2349.9,4.2552]
[1725988215661,0.2,2350.0,2349.8,3.33]
[1725988216659,0.2,2350.0,2349.9,21.4]
[1725988217057,0.62551,2350.0,2349.9,21.4]
[1725988217262,0.62551,2350.0,2349.7,3.33]
[1725988217463,0.42553,2349.9,2349.7,3.33]
[1725988217857,0.62552,2350.0,2349.7,3.33]
[1725988218164,0.2,2350.0,2349.7,3.33]
[1725988219055,0.2,2350.0,2349.8,3.33]
[1725988219277,0.2,2350.0,2349.8,3.75553]
[1725988219463,0.2,2350.0,2349.9,4.68072]
[1725988219764,3.33,2351.3,2350.0,1.06377]
[1725988219955,1.06327,2351.1,2350.5,3.33]
[1725988220160,0.3726,2351.2,2350.5,3.33]
[1725988220161,0.42537,2350.8,2350.5,3.33]
[1725988220471,0.42535,2350.9,2350.0,4.189]
[1725988220861,11.82238357,2351.1,2350.0,4.189]
[1725988221054,1.06328,2351.1,2350.4,0.42543]
[1725988221263,0.42532,2351.1,2350.5,0.42541]
[1725988221770,0.42526,2351.4,2350.6,4.09]
[1725988221957,1.1696,2351.9,2350.8,0.42535]
[1725988222262,14.66293445,2351.8,2350.6,0.099]
[1725988222466,1.063,2351.7,2350.6,4.189]
[1725988222669,0.42524,2351.5,2351.0,0.42532]
[1725988222853,0.43331706,2352.0,2351.0,0.42532]
[1725988222854,10.57293445,2351.6,2351.2,0.42527]
[1725988223054,4.09,2352.5,2351.2,0.42527]
[1725988223055,0.42517,2351.9,2351.3,0.3946]
[1725988223362,10.57293445,2352.0,2351.3,0.7704]
[1725988223560,1.06287,2352.0,2351.3,0.7704]
[1725988223755,0.42519,2351.8,2351.3,0.7704]
[1725988223967,5.15278,2352.2,2351.4,21.4]
[1725988224158,0.42521,2351.7,2351.4,21.4]
[1725988224356,10.70757438,2352.1,2351.4,21.4]
[1725988224357,11.77042438,2352.1,2351.4,21.4]
[1725988224663,1.06285,2352.1,2351.4,21.4]
[1725988224863,0.42518,2351.8,2351.4,21.4]
[1725988225166,10.6829201,2352.0,2351.4,21.4]
[1725988225778,0.42516,2351.9,2351.4,21.4]
[1725988226066,10.6829201,2352.0,2351.4,21.4]
[1725988226264,0.4252,2351.8,2351.4,21.4]
[1725988226469,1.45325,2351.9,2350.9,0.52433]
[1725988226768,9.85769651,2351.8,2350.9,0.099]
[1725988227176,0.42526,2351.4,2350.9,0.099]
[1725988227469,0.42526,2351.4,2350.7,26.2474]
[1725988227470,1.06305,2351.6,2350.7,26.67277]
[1725988227765,0.4253,2351.2,2350.7,0.3758]
[1725988227967,0.4253,2351.2,2350.6,0.80489]
[1725988227968,0.3977,2351.5,2350.6,0.3795]
[1725988228156,4.09,2351.3,2350.3,0.099]
[1725988228358,1.06319,2351.3,2350.3,0.099]
[1725988228557,0.42534,2351.0,2350.4,0.42542]
[1725988228857,1.06327,2351.1,2350.4,4.09]
[1725988229163,0.37,2351.1,2350.4,4.09]
[1725988229761,0.42528,2351.3,2350.7,0.42537]
[1725988230259,10.49935977,2351.4,2350.8,0.42535]
[1725988230462,10.92461977,2351.4,2350.8,0.42535]
[1725988230664,10.92461977,2351.4,2350.7,4.09]
[1725988230665,10.49935977,2351.4,2350.7,4.09]
[1725988230871,10.92461977,2351.4,2350.8,0.42535]
[1725988231081,10.49935977,2351.4,2350.7,4.09]
[1725988231364,10.49935977,2351.4,2350.8,0.42535]
[1725988231567,10.49935977,2351.4,2350.7,4.51537]
[1725988231869,0.4253,2351.2,2350.6,0.80259]
[1725988232066,1.06318,2351.3,2350.6,0.4254]
[1725988232266,0.42528,2351.3,2350.4,4.09]
[1725988232462,0.42525,2351.4,2350.8,0.42535]
[1725988232762,0.42525,2351.4,2350.7,4.09]
[1725988232763,10.69031605,2351.4,2350.7,4.09]
[1725988232971,10.69031605,2351.4,2351.1,0.4253]
[1725988233171,0.4252,2351.7,2351.2,0.42528]
[1725988233468,0.42521,2351.7,2351.1,0.4253]
[1725988233667,0.42519,2351.8,2351.0,4.09]
[1725988233865,1.06289,2352.0,2351.2,0.42527]
[1725988234066,0.42521,2351.7,2351.1,0.4253]
[1725988234571,1.06274,2352.3,2351.0,4.09]
[1725988234870,10.8735844,2351.9,2351.3,4.09]
[1725988235077,10.8735844,2351.9,2351.5,0.42522]
[1725988235271,0.42514,2352.0,2351.4,22.20064]
[1725988235571,11.10543411,2352.0,2351.4,21.7754]
[1725988235877,0.42515,2352.0,2351.4,21.7754]
[1725988236171,1.06278,2352.2,2351.5,0.42523]
[1725988236371,1.06278,2352.2,2351.4,21.7754]
[1725988236572,0.42515,2352.0,2351.5,0.42523]
[1725988236966,1.06282,2352.1,2351.4,21.7754]
[1725988237181,0.42518,2351.9,2351.4,22.20064]
[1725988237378,1.06278,2352.2,2351.4,22.20064]
[1725988237379,10.46742504,2352.1,2351.4,21.7754]
[1725988237672,0.42515,2352.0,2351.5,0.42522]
[1725988238064,0.42518,2351.8,2351.4,21.7754]
[1725988238275,0.42519,2351.8,2351.4,0.3754]
[1725988238471,0.42517,2351.9,2351.4,0.80065]
[1725988238771,11.53027504,2352.1,2351.4,0.3754]
[1725988238978,1.06287,2352.0,2351.4,0.80065]
[1725988239169,0.42517,2351.9,2351.4,0.3754]
[1725988239369,0.42517,2351.9,2351.4,0.80064]
[1725988239570,1.0628,2352.2,2351.4,0.3754]
[1725988239571,10.87104264,2352.2,2351.4,0.3754]
[1725988239781,0.42515,2352.0,2351.5,0.42522]
[1725988240376,1.0628,2352.2,2351.5,0.42522]
[1725988240574,0.42519,2351.8,2351.4,0.3754]
[1725988240773,0.42519,2351.8,2351.0,1.0633]
[1725988240774,1.06294,2351.9,2351.0,4.189]
[1725988240975,1.06305,2351.6,2350.8,0.099]
[1725988241277,0.42532,2351.1,2350.7,4.489]
[1725988241668,0.42532,2351.1,2350.7,4.91438]
[1725988241871,0.42532,2351.1,2350.7,4.489]
[1725988242082,0.42533,2351.0,2350.8,3.32]
[1725988242274,0.42532,2351.1,2350.8,3.32]
[1725988242972,0.772,2351.5,2351.0,3.32]
[1725988242973,1.83512,2351.5,2351.0,3.32]
[1725988243174,0.4253,2351.2,2351.0,3.32]
[1725988243770,0.42531,2351.1,2351.0,3.32]
[1725988243971,1.0626,2352.6,2351.3,1.06317]
[1725988244165,0.3971,2352.7,2351.3,1.06317]
[1725988244166,0.3971,2352.7,2352.3,4.08]
[1725988244369,10.77027037,2352.7,2352.3,4.08]
[1725988244576,0.4027,2352.8,2352.3,4.08]
[1725988244577,0.4027,2352.8,2352.4,0.42507]
[1725988244878,1.4594,2353.3,2352.3,25.48]
[1725988244879,0.42499,2352.9,2352.3,25.48]
[1725988245080,1.06239,2353.1,2352.3,25.48]
[1725988245281,10.49135754,2352.8,2352.3,21.4]
[1725988245579,0.42502,2352.7,2352.3,21.4]
[1725988245780,0.42505,2352.6,2351.9,0.099]
[1725988245969,0.42503,2352.7,2351.9,0.42516]
[1725988246173,10.45701371,2353.0,2352.0,21.4]
[1725988246374,0.42508,2352.4,2351.9,0.099]
[1725988246679,0.42508,2352.4,2351.7,0.099]
[1725988246981,0.42508,2352.4,2351.9,21.4]
[1725988247280,0.79636,2352.5,2351.7,0.42519]
[1725988247579,1.06281,2352.2,2351.5,0.099]
[1725988247774,0.42515,2352.0,2351.2,0.52428]
[1725988247974,11.69641111,2352.1,2351.1,4.08]
[1725988248174,11.69641111,2352.1,2351.3,0.42526]
[1725988248375,0.42514,2352.0,2351.3,0.42526]
[1725988248579,0.3965,2352.1,2351.1,4.08]
[1725988248772,0.3965,2352.1,2351.1,4.5053]
[1725988248773,0.80427,2351.9,2351.1,4.5053]
[1725988248973,0.3791,2351.9,2351.2,0.42528]
[1725988249171,0.2691,2351.9,2351.5,0.42523]
[1725988249376,0.2691,2351.9,2351.4,4.08]
[1725988249783,0.2691,2351.9,2351.4,4.50525]
[1725988249982,0.2691,2351.9,2351.4,4.08]
[1725988250188,10.38890374,2352.0,2351.4,4.08]
[1725988250479,0.82666,2352.5,2351.9,0.42516]
[1725988250685,0.4016,2352.5,2351.8,0.42517]
[1725988250882,0.4016,2352.5,2351.7,4.08]
[1725988250883,10.4532177,2352.4,2351.7,4.08]
[1725988251084,0.42508,2352.4,2351.8,0.42517]
[1725988251677,0.42511,2352.2,2351.7,4.08]
[1725988251890,0.42508,2352.4,2351.8,0.42517]
[1725988252086,3.18191995,2352.5,2351.7,4.08]
[1725988252087,3.60697995,2352.5,2351.7,4.08]
[1725988252382,2.78031995,2352.4,2351.7,4.08]
[1725988252684,2.78031995,2352.4,2351.6,0.383]
[1725988252685,2.78031995,2352.4,2352.0,4.08]
[1725988252884,3.60698995,2352.5,2352.0,4.08]
[1725988253279,2.78031995,2352.3,2352.0,4.08]
[1725988253878,2.78031995,2352.4,2352.0,4.08]
[1725988254278,2.78031995,2352.2,2352.0,4.08]
[1725988255085,2.78031995,2352.3,2352.0,4.50514]
[1725988255289,2.78031995,2352.2,2352.0,4.08]
[1725988255484,2.78031995,2352.1,2352.0,4.08]
[1725988255686,3.33638394,2352.3,2351.7,4.08]
[1725988255885,2.76044718,2351.9,2351.7,4.08]
[1725988256187,2.76044718,2351.8,2351.7,4.08]
[1725988256798,2.76044718,2351.8,2351.7,4.5052]
[1725988256982,2.76044718,2351.8,2351.7,4.08]
[1725988257181,2.76044718,2351.8,2351.7,4.5052]
[1725988257396,2.76044718,2351.8,2351.7,8.7572]
[1725988258496,3.33638394,2352.0,2351.7,8.332]
[1725988258791,3.33638394,2352.0,2351.9,0.42516]
[1725988259089,0.82667,2352.5,2352.0,0.42513]
[1725988259384,0.82667,2352.5,2352.2,4.08]
[1725988259584,0.82667,2352.5,2352.2,4.5051]
[1725988259585,0.4016,2352.5,2352.2,4.5051]
[1725988259792,0.3922,2352.6,2352.3,0.42509]
[1725988259989,0.42503,2352.7,2352.2,4.50509]
[1725988260181,0.42504,2352.6,2352.2,4.50509]
[1725988260584,10.67400278,2352.8,2352.6,0.42504]
[1725988260791,4.91002919,2353.5,2352.6,0.42504]
[1725988260792,2.56512587,2353.6,2353.4,0.42488]
[1725988260981,4.39244793,2354.0,2353.4,0.42488]
[1725988260982,0.5,2354.0,2353.4,4.08]
[1725988261186,0.5,2354.0,2353.7,4.08]
[1725988261384,0.5,2354.0,2353.8,4.248]
[1725988261584,0.5,2354.0,2353.8,4.67281]
[1725988261792,3.73978394,2355.0,2353.9,4.248]
[1725988261996,5.31306867,2355.7,2354.7,4.08]
[1725988261997,8.79542362,2355.7,2354.7,4.08]
[1725988262186,10.2271219,2356.7,2355.1,4.08]
[1725988262187,0.42456,2355.3,2355.1,4.08]
[1725988262486,1.06133,2355.4,2354.8,4.08]
[1725988262686,0.42461,2355.0,2354.8,4.08]
[1725988262889,0.42466,2354.7,2354.6,21.4]
[1725988263094,1.06142,2355.2,2354.0,4.08]
[1725988263294,4.2464,2355.4,2353.9,4.179]
[1725988263295,1.06151,2355.1,2353.9,4.179]
[1725988263485,0.3895,2355.0,2354.0,21.4]
[1725988263681,1.0616,2354.8,2354.0,21.4]
[1725988263887,11.21299141,2354.9,2354.0,21.4]
[1725988264088,0.4025,2354.9,2354.0,21.4]
[1725988264310,0.42468,2354.6,2354.0,21.4]
[1725988265096,0.4247,2354.5,2354.0,21.4]
[1725988265391,10.66439046,2354.8,2354.0,21.4]
[1725988265701,0.42469,2354.6,2354.0,21.4]
[1725988265885,10.66439046,2354.8,2354.0,21.4]
[1725988266092,10.66439046,2354.8,2354.2,4.08]
[1725988266294,10.66439046,2354.8,2354.0,0.42477]
[1725988266295,3.30241479,2354.4,2354.0,0.42477]
[1725988266596,3.30241479,2354.5,2354.3,4.08]
[1725988267196,3.30241479,2354.5,2354.4,21.2]
[1725988267397,3.30241479,2354.6,2354.4,25.4472]
[1725988267695,3.30241479,2354.8,2354.5,4.67188]
[1725988267903,3.30241479,2355.0,2354.7,4.08]
[1725988268194,3.30241479,2355.4,2354.9,4.08]
[1725988268400,3.30241479,2355.7,2355.4,0.42453]
[1725988268595,3.30241479,2355.7,2355.3,4.08]
[1725988268794,0.42451,2355.6,2355.3,4.08]